fUST/lending_fUST_20250814
["ID","MTS","AMOUNT","RATE_DAILY","PERIOD"]
[379050138,1755101463846,-460.0,0.00020547,2]
[379050139,1755101463855,-325.22,0.00020547,2]
[379050140,1755101463865,-460.0,0.00020547,2]
[379050141,1755101463875,-460.0,0.00020547,2]
[379050142,1755101463884,-460.0,0.00020547,2]
[379050143,1755101463894,-460.0,0.00020547,2]
[379050144,1755101463904,-460.0,0.00020547,2]
[379050145,1755101463914,-699.32,0.00020547,2]
[379050146,1755101463923,-460.0,0.00020547,2]
[379050147,1755101463933,-460.0,0.00020547,2]
[379050148,1755101463943,-460.0,0.00020547,2]
[379050149,1755101463952,-460.0,0.00020547,2]
[379050150,1755101463962,-460.0,0.00020547,2]
[379050151,1755101463972,-460.0,0.00020547,2]
[379050152,1755101463982,-460.0,0.00020547,2]
[379050153,1755101463992,-360.16603561,0.00020547,2]
[379050154,1755101464002,-460.0,0.00020547,2]
[379050155,1755101464011,-460.0,0.00020547,2]
[379050156,1755101464020,-460.0,0.00020547,2]
[379050157,1755101464030,-460.0,0.00020547,2]
[379050158,1755101464040,-460.0,0.00020547,2]
[379050159,1755101464050,-460.0,0.00020547,2]
[379050160,1755101464060,-460.0,0.00020547,2]
[379050161,1755101464070,-460.0,0.00020547,2]
[379050162,1755101464079,-460.0,0.00020547,2]
[379050163,1755101464089,-460.0,0.00020547,2]
[379050164,1755101464098,-703.16,0.00020547,2]
[379050165,1755101464108,-460.0,0.00020547,2]
[379050166,1755101464118,-460.0,0.00020547,2]
[379050167,1755101464171,-460.0,0.00020547,2]
[379050168,1755101464181,-701.16,0.00020547,2]
[379050169,1755101464191,-948.1,0.00020547,2]
[379050170,1755101464201,-941.35,0.00020547,2]
[379050171,1755101464211,-460.0,0.00020547,2]
[379050172,1755101464221,-460.0,0.00020547,2]
[379050173,1755101464230,-460.0,0.00020547,2]
[379050174,1755101464240,-460.0,0.00020547,2]
[379050175,1755101464250,-762.82,0.00020547,2]
[379050176,1755101464260,-565.36,0.00020547,2]
[379050177,1755101464270,-844.92,0.00020547,2]
[379050178,1755101464281,-460.0,0.00020547,2]
[379050179,1755101464291,-460.0,0.00020547,2]
[379050180,1755101464301,-460.0,0.00020547,2]
[379050181,1755101464311,-460.0,0.00020547,2]
[379050182,1755101464321,-486.12,0.00020547,2]
[379050183,1755101464330,-460.0,0.00020547,2]
[379050184,1755101464341,-460.0,0.00020547,2]
[379050185,1755101464351,-1077.76,0.00020547,2]
[379050186,1755101464360,-4161.77,0.00020547,2]
[379050187,1755101464370,-460.0,0.00020547,2]
[379050188,1755101464380,-460.0,0.00020547,2]
[379050189,1755101464389,-460.0,0.00020547,2]
[379050190,1755101464398,-460.0,0.00020547,2]
[379050191,1755101464408,-707.61,0.00020547,2]
[379050192,1755101464416,-460.0,0.00020547,2]
[379050193,1755101464425,-460.0,0.00020547,2]
[379050194,1755101464435,-605.75,0.00020547,2]
[379050195,1755101464444,-460.0,0.00020547,2]
[379050196,1755101464454,-460.0,0.00020547,2]
[379050197,1755101464464,-460.0,0.00020547,2]
[379050198,1755101464474,-8328.58,0.00020547,2]
[379050199,1755101464484,-460.0,0.00020547,2]
[379050200,1755101464494,-512.26,0.00020547,2]
[379050201,1755101464503,-788.9,0.00020547,2]
[379050202,1755101464513,-1171.67,0.00020547,2]
[379050203,1755101464523,-960.06,0.00020547,2]
[379050204,1755101464535,-1469.32,0.00020547,2]
[379050205,1755101464545,-460.0,0.00020547,2]
[379050206,1755101464554,-460.0,0.00020547,2]
[379050207,1755101464564,-460.0,0.00020547,2]
[379050208,1755101464574,-801.23,0.00020547,2]
[379050209,1755101464584,-460.0,0.00020547,2]
[379050210,1755101464594,-460.0,0.00020547,2]
[379050211,1755101464603,-460.0,0.00020547,2]
[379050212,1755101464612,-460.0,0.00020547,2]
[379050213,1755101464622,-702.93,0.00020547,2]
[379050214,1755101464631,-460.0,0.00020547,2]
[379050215,1755101464641,-505.81,0.00020547,2]
[379050216,1755101464651,-460.0,0.00020547,2]
[379050217,1755101464660,-982.95,0.00020547,2]
[379050218,1755101464670,-460.0,0.00020547,2]
[379050219,1755101464679,-460.0,0.00020547,2]
[379050220,1755101464688,-731.73,0.00020547,2]
[379050221,1755101464697,-460.0,0.00020547,2]
[379050222,1755101464706,-460.0,0.00020547,2]
[379050223,1755101464715,-460.0,0.00020547,2]
[379050224,1755101464725,-516.14,0.00020547,2]
[379050225,1755101464734,-460.0,0.00020547,2]
[379050226,1755101464744,-976.41,0.00020547,2]
[379050227,1755101464753,-460.0,0.00020547,2]
[379050228,1755101464768,-460.0,0.00020547,2]
[379050229,1755101464778,-3927.56,0.00020547,2]
[379050230,1755101464791,-460.0,0.00020547,2]
[379050231,1755101464803,-460.0,0.00020547,2]
[379050232,1755101464813,-519.18,0.00020547,2]
[379050233,1755101464823,-460.0,0.00020547,2]
[379050234,1755101464834,-460.0,0.00020547,2]
[379050235,1755101464844,-572.82,0.00020547,2]
[379050236,1755101464854,-460.0,0.00020547,2]
[379050237,1755101464864,-460.0,0.00020547,2]
[379050238,1755101464883,-460.0,0.00020547,2]
[379050239,1755101464895,-460.0,0.00020547,2]
[379050240,1755101464906,-460.0,0.00020547,2]
[379050241,1755101464916,-460.0,0.00020547,2]
[379050242,1755101464926,-460.0,0.00020547,2]
[379050243,1755101464937,-595.06,0.00020547,2]
[379050244,1755101464948,-4546.09,0.00020547,2]
[379050245,1755101464958,-460.0,0.00020547,2]
[379050246,1755101464969,-792.01,0.00020547,2]
[379050247,1755101464979,-460.0,0.00020547,2]
[379050248,1755101464990,-460.0,0.00020547,2]
[379050249,1755101465000,-460.0,0.00020547,2]
[379050250,1755101465011,-460.0,0.00020547,2]
[379050251,1755101465021,-460.0,0.00020547,2]
[379050252,1755101465036,-2656.85,0.00020547,2]
[379050253,1755101465047,-460.0,0.00020547,2]
[379050254,1755101465058,-460.0,0.00020547,2]
[379050255,1755101465069,-460.0,0.00020547,2]
[379050256,1755101465079,-800.85,0.00020547,2]
[379050257,1755101465091,-1070.19,0.00020547,2]
[379050258,1755101465103,-460.0,0.00020547,2]
[379050259,1755101465115,-460.0,0.00020547,2]
[379050260,1755101465127,-460.0,0.00020547,2]
[379050261,1755101465141,-701.9,0.00020547,2]
[379050262,1755101465156,-205.48317821,0.00020547,2]
[379050263,1755101465167,-460.0,0.00020547,2]
[379050264,1755101465178,-460.0,0.00020547,2]
[379050265,1755101465189,-460.0,0.00020547,2]
[379050266,1755101465199,-460.0,0.00020547,2]
[379050267,1755101465209,-1750.46,0.00020547,2]
[379050268,1755101465219,-460.0,0.00020547,2]
[379050269,1755101465230,-848.78,0.00020547,2]
[379050270,1755101465240,-460.0,0.00020547,2]
[379050271,1755101465251,-460.0,0.00020547,2]
[379050272,1755101465261,-460.0,0.00020547,2]
[379050273,1755101465271,-460.0,0.00020547,2]
[379050274,1755101465284,-460.0,0.00020547,2]
[379050275,1755101465294,-3119.29,0.00020547,2]
[379050276,1755101465304,-1296.19,0.00020547,2]
[379050277,1755101465314,-1428.08,0.00020547,2]
[379050278,1755101465324,-613.21,0.00020547,2]
[379050279,1755101465334,-460.0,0.00020547,2]
[379050280,1755101465344,-965.16,0.00020547,2]
[379050281,1755101465355,-4237.64,0.00020547,2]
[379050282,1755101465364,-460.0,0.00020547,2]
[379050283,1755101465375,-460.0,0.00020547,2]
[379050284,1755101465385,-460.0,0.00020547,2]
[379050285,1755101465395,-1980.3,0.00020547,2]
[379050286,1755101465405,-974.49,0.00020547,2]
[379050287,1755101465415,-460.0,0.00020547,2]
[379050288,1755101465426,-460.0,0.00020547,2]
[379050289,1755101465436,-460.0,0.00020547,2]
[379050290,1755101465447,-420.36433133,0.00020547,2]
[379050291,1755101465457,-460.0,0.00020547,2]
[379050292,1755101465468,-460.0,0.00020547,2]
[379050293,1755101465478,-460.0,0.00020547,2]
[379050294,1755101465488,-666.67,0.00020547,2]
[379050295,1755101465498,-460.0,0.00020547,2]
[379050296,1755101465509,-978.01,0.00020547,2]
[379050297,1755101465519,-4436.23,0.00020547,2]
[379050298,1755101465529,-460.0,0.00020547,2]
[379050299,1755101465542,-2457.62,0.00020547,2]
[379050300,1755101465553,-567.51,0.00020547,2]
[379050301,1755101465563,-460.0,0.00020547,2]
[379050302,1755101465573,-460.0,0.00020547,2]
[379050303,1755101465583,-460.0,0.00020547,2]
[379050304,1755101465594,-528.03,0.00020547,2]
[379050305,1755101465603,-460.0,0.00020547,2]
[379050306,1755101465613,-3502.61,0.00020547,2]
[379050307,1755101465623,-500.0,0.00020821,2]
[379050308,1755101465634,-400.0,0.00020821,2]
[379050309,1755101465644,-460.0,0.00020821,2]
[379050310,1755101465654,-319.10817248,0.00020821,2]
[379050311,1755101465665,-460.0,0.00020821,2]
[379050312,1755101465675,-460.0,0.00020821,2]
[379050313,1755101465686,-460.0,0.00020821,2]
[379050314,1755101465696,-460.0,0.00020821,2]
[379050315,1755101465706,-460.0,0.00020821,2]
[379050316,1755101465716,-386.13303448,0.00020821,2]
[379050317,1755101465726,-831.07,0.00020821,2]
[379050318,1755101465737,-460.0,0.00020821,2]
[379050319,1755101465747,-460.0,0.00020821,2]
[379050320,1755101465758,-460.0,0.00020821,2]
[379050321,1755101465771,-460.0,0.00020821,2]
[379050322,1755101465786,-460.0,0.00020821,2]
[379050323,1755101465797,-572.68,0.00020821,2]
[379050324,1755101465809,-460.0,0.00020821,2]
[379050325,1755101465821,-460.0,0.00020821,2]
[379050326,1755101465832,-656.93,0.00020821,2]
[379050327,1755101465844,-460.0,0.00020821,2]
[379050328,1755101465855,-460.0,0.00020821,2]
[379050329,1755101465867,-467.85,0.00020821,2]
[379050330,1755101465877,-460.0,0.00020821,2]
[379050331,1755101465889,-474.64220598,0.00020821,2]
[379050332,1755101465899,-460.0,0.00020821,2]
[379050333,1755101465910,-460.0,0.00020821,2]
[379050334,1755101465920,-460.0,0.00020821,2]
[379050335,1755101465931,-460.0,0.00020821,2]
[379050336,1755101465941,-460.0,0.00020821,2]
[379050337,1755101465951,-460.0,0.00020821,2]
[379050338,1755101465961,-522.0,0.00020821,2]
[379050339,1755101465971,-460.0,0.00020821,2]
[379050340,1755101465981,-160.51950783,0.00020821,2]
[379050341,1755101465991,-233.12,0.00020821,2]
[379050342,1755101466001,-460.0,0.00020821,2]
[379050343,1755101466011,-340.81786653,0.00020821,2]
[379050344,1755101466022,-460.0,0.00020821,2]
[379050345,1755101466037,-460.0,0.00020821,2]
[379050346,1755101466047,-460.0,0.00020821,2]
[379050347,1755101466058,-460.0,0.00020821,2]
[379050348,1755101466069,-460.0,0.00020821,2]
[379050349,1755101466079,-460.0,0.00020821,2]
[379050350,1755101466089,-460.0,0.00020821,2]
[379050351,1755101466099,-460.0,0.00020821,2]
[379050352,1755101466110,-460.0,0.00020821,2]
[379050353,1755101466120,-351.48236711,0.00020821,2]
[379050354,1755101466130,-1095.68,0.00020821,2]
[379050355,1755101466141,-460.0,0.00020821,2]
[379050356,1755101466151,-460.0,0.00020821,2]
[379050357,1755101466161,-460.0,0.00020821,2]
[379050358,1755101466172,-460.0,0.00020821,2]
[379050359,1755101466183,-460.0,0.00020821,2]
[379050360,1755101466193,-460.0,0.00020821,2]
[379050361,1755101466206,-460.0,0.00020821,2]
[379050362,1755101466217,-460.0,0.00020821,2]
[379050363,1755101466227,-460.0,0.00020821,2]
[379050364,1755101466237,-460.0,0.00020821,2]
[379050365,1755101466248,-460.0,0.00020821,2]
[379050366,1755101466258,-460.0,0.00020821,2]
[379050367,1755101466268,-460.0,0.00020821,2]
[379050368,1755101466278,-498.51512033,0.00020821,2]
[379050369,1755101466291,-525.07,0.00020821,2]
[379050370,1755101466301,-460.0,0.00020821,2]
[379050371,1755101466311,-460.0,0.00020821,2]
[379050372,1755101466321,-460.0,0.00020821,2]
[379050373,1755101466331,-571.78,0.00020821,2]
[379050374,1755101466341,-460.0,0.00020821,2]
[379050375,1755101466351,-3084.82,0.00020821,2]
[379050376,1755101466361,-460.0,0.00020821,2]
[379050377,1755101466371,-460.0,0.00020821,2]
[379050378,1755101466381,-460.0,0.00020821,2]
[379050379,1755101466391,-460.0,0.00020821,2]
[379050380,1755101466402,-556.29,0.00020821,2]
[379050381,1755101466412,-460.0,0.00020821,2]
[379050382,1755101466422,-460.0,0.00020821,2]
[379050383,1755101466432,-915.49,0.00020821,2]
[379050384,1755101466442,-927.18,0.00020821,2]
[379050385,1755101466452,-460.0,0.00020821,2]
[379050386,1755101466462,-460.0,0.00020821,2]
[379050387,1755101466472,-460.0,0.00020821,2]
[379050388,1755101466482,-460.0,0.00020821,2]
[379050389,1755101466492,-460.0,0.00020821,2]
[379050390,1755101466502,-460.0,0.00020821,2]
[379050391,1755101466512,-460.0,0.00020821,2]
[379050392,1755101466522,-460.0,0.00020821,2]
[379050393,1755101466532,-460.0,0.00020821,2]
[379050394,1755101466545,-460.0,0.00020821,2]
[379050395,1755101466554,-460.0,0.00020821,2]
[379050396,1755101466566,-845.51,0.00020821,2]
[379050397,1755101466577,-460.0,0.00020821,2]
[379050398,1755101466587,-882.55,0.00020821,2]
[379050399,1755101466598,-858.51,0.00020821,2]
[379050400,1755101466609,-460.0,0.00020821,2]
[379050401,1755101466619,-460.0,0.00020821,2]
[379050402,1755101466629,-460.0,0.00020821,2]
[379050403,1755101466642,-1053.85,0.00020821,2]
[379050404,1755101466652,-460.0,0.00020821,2]
[379050405,1755101466662,-460.0,0.00020821,2]
[379050406,1755101466672,-460.0,0.00020821,2]
[379050407,1755101466682,-541.41,0.00020821,2]
[379050408,1755101466692,-460.0,0.00020821,2]
[379050409,1755101466702,-460.0,0.00020821,2]
[379050410,1755101466712,-460.0,0.00020821,2]
[379050411,1755101466722,-460.0,0.00020821,2]
[379050412,1755101466732,-460.0,0.00020821,2]
[379050413,1755101466742,-460.0,0.00020821,2]
[379050414,1755101466752,-460.0,0.00020821,2]
[379050415,1755101466765,-699.32,0.00020821,2]
[379050416,1755101466775,-460.0,0.00020821,2]
[379050417,1755101466785,-460.0,0.00020821,2]
[379050418,1755101466795,-460.0,0.00020821,2]
[379050419,1755101466806,-460.0,0.00020821,2]
[379050420,1755101466816,-460.0,0.00020821,2]
[379050421,1755101466827,-460.0,0.00020821,2]
[379050422,1755101466839,-460.0,0.00020821,2]
[379050423,1755101466848,-460.0,0.00020821,2]
[379050424,1755101466858,-460.0,0.00020821,2]
[379050425,1755101466867,-460.0,0.00020821,2]
[379050426,1755101466877,-460.0,0.00020821,2]
[379050427,1755101466887,-460.0,0.00020821,2]
[379050428,1755101466896,-460.0,0.00020821,2]
[379050429,1755101466906,-582.76631405,0.00020821,2]
[379050430,1755101466916,-460.0,0.00020821,2]
[379050431,1755101466926,-460.0,0.00020821,2]
[379050432,1755101466936,-703.16,0.00020821,2]
[379050433,1755101466948,-460.0,0.00020821,2]
[379050434,1755101466957,-460.0,0.00020821,2]
[379050435,1755101466968,-460.0,0.00020821,2]
[379050436,1755101466978,-701.16,0.00020821,2]
[379050437,1755101466988,-948.1,0.00020821,2]
[379050438,1755101466999,-941.35,0.00020821,2]
[379050439,1755101467008,-460.0,0.00020821,2]
[379050440,1755101467018,-213.01249094,0.00020821,2]
[379050441,1755101467028,-460.0,0.00020821,2]
[379050442,1755101467039,-460.0,0.00020821,2]
[379050443,1755101467049,-762.82,0.00020821,2]
[379050444,1755101467059,-565.36,0.00020821,2]
[379050445,1755101467070,-844.92,0.00020821,2]
[379050446,1755101467079,-460.0,0.00020821,2]
[379050447,1755101467089,-460.0,0.00020821,2]
[379050448,1755101467099,-460.0,0.00020821,2]
[379050449,1755101467110,-460.0,0.00020821,2]
[379050450,1755101467119,-486.12,0.00020821,2]
[379050451,1755101467130,-460.0,0.00020821,2]
[379050452,1755101467139,-460.0,0.00020821,2]
[379050453,1755101467149,-1077.76,0.00020821,2]
[379050454,1755101467160,-4161.77,0.00020821,2]
[379050455,1755101467171,-460.0,0.00020821,2]
[379050456,1755101467312,-460.0,0.00020821,2]
[379050457,1755101467323,-460.0,0.00020821,2]
[379050458,1755101467333,-707.61,0.00020821,2]
[379050459,1755101467343,-460.0,0.00020821,2]
[379050460,1755101467352,-460.0,0.00020821,2]
[379050461,1755101467362,-605.75,0.00020821,2]
[379050462,1755101467371,-460.0,0.00020821,2]
[379050463,1755101467381,-460.0,0.00020821,2]
[379050464,1755101467391,-460.0,0.00020821,2]
[379050465,1755101467401,-8328.58,0.00020821,2]
[379050466,1755101467410,-460.0,0.00020821,2]
[379050467,1755101467420,-512.26,0.00020821,2]
[379050468,1755101467429,-788.9,0.00020821,2]
[379050469,1755101467438,-1171.67,0.00020821,2]
[379050470,1755101467448,-960.06,0.00020821,2]
[379050471,1755101467457,-1469.32,0.00020821,2]
[379050472,1755101467467,-460.0,0.00020821,2]
[379050473,1755101467476,-460.0,0.00020821,2]
[379050474,1755101467486,-801.23,0.00020821,2]
[379050475,1755101467496,-460.0,0.00020821,2]
[379050476,1755101467505,-460.0,0.00020821,2]
[379050477,1755101467514,-460.0,0.00020821,2]
[379050478,1755101467524,-460.0,0.00020821,2]
[379050479,1755101467534,-702.93,0.00020821,2]
[379050480,1755101467544,-460.0,0.00020821,2]
[379050481,1755101467554,-505.81,0.00020821,2]
[379050482,1755101467564,-460.0,0.00020821,2]
[379050483,1755101467574,-982.95,0.00020821,2]
[379050484,1755101467584,-460.0,0.00020821,2]
[379050485,1755101467594,-572.85324707,0.00020821,2]
[379050486,1755101467604,-731.73,0.00020821,2]
[379050487,1755101467613,-460.0,0.00020821,2]
[379050488,1755101467622,-460.0,0.00020821,2]
[379050489,1755101467631,-460.0,0.00020821,2]
[379050490,1755101467641,-976.41,0.00020821,2]
[379050491,1755101467650,-460.0,0.00020821,2]
[379050492,1755101467659,-3927.56,0.00020821,2]
[379050493,1755101467668,-460.0,0.00020821,2]
[379050494,1755101467678,-460.0,0.00020821,2]
[379050495,1755101467687,-519.18,0.00020821,2]
[379050496,1755101467697,-460.0,0.00020821,2]
[379050497,1755101467707,-460.0,0.00020821,2]
[379050498,1755101467716,-572.82,0.00020821,2]
[379050499,1755101467725,-460.0,0.00020821,2]
[379050500,1755101467735,-460.0,0.00020821,2]
[379050501,1755101467744,-460.0,0.00020821,2]
[379050502,1755101467753,-460.0,0.00020821,2]
[379050503,1755101467764,-460.0,0.00020821,2]
[379050504,1755101467776,-460.0,0.00020821,2]
[379050505,1755101467792,-460.0,0.00020821,2]
[379050506,1755101467802,-595.06,0.00020821,2]
[379050507,1755101467811,-4546.09,0.00020821,2]
[379050508,1755101467824,-460.0,0.00020821,2]
[379050509,1755101467833,-792.01,0.00020821,2]
[379050510,1755101467842,-460.0,0.00020821,2]
[379050511,1755101467851,-460.0,0.00020821,2]
[379050512,1755101467861,-353.1881626,0.00020821,2]
[379050513,1755101467870,-460.0,0.00020821,2]
[379050514,1755101467880,-460.0,0.00020821,2]
[379050515,1755101467889,-2656.85,0.00020821,2]
[379050516,1755101467898,-460.0,0.00020821,2]
[379050517,1755101467907,-460.0,0.00020821,2]
[379050518,1755101467916,-460.0,0.00020821,2]
[379050519,1755101467925,-800.85,0.00020821,2]
[379050520,1755101467935,-1070.19,0.00020821,2]
[379050521,1755101467944,-460.0,0.00020821,2]
[379050522,1755101467953,-460.0,0.00020821,2]
[379050523,1755101467963,-460.0,0.00020821,2]
[379050524,1755101467972,-701.9,0.00020821,2]
[379050525,1755101467981,-327.48372441,0.00020821,2]
[379050526,1755101467991,-460.0,0.00020821,2]
[379050527,1755101468000,-460.0,0.00020821,2]
[379050528,1755101468009,-1750.46,0.00020821,2]
[379050529,1755101468018,-460.0,0.00020821,2]
[379050530,1755101468028,-848.78,0.00020821,2]
[379050531,1755101468038,-460.0,0.00020821,2]
[379050532,1755101468048,-460.0,0.00020821,2]
[379050533,1755101468057,-460.0,0.00020821,2]
[379050534,1755101468066,-460.0,0.00020821,2]
[379050535,1755101468075,-460.0,0.00020821,2]
[379050536,1755101468085,-3119.29,0.00020821,2]
[379050537,1755101468095,-1296.19,0.00020821,2]
[379050538,1755101468104,-613.21,0.00020821,2]
[379050539,1755101468113,-1428.08,0.00020821,2]
[379050540,1755101468123,-460.0,0.00020821,2]
[379050541,1755101468132,-965.16,0.00020821,2]
[379050542,1755101468142,-4237.64,0.00020821,2]
[379050543,1755101468152,-524.22831424,0.00020821,2]
[379050544,1755101468162,-460.0,0.00020821,2]
[379050545,1755101468171,-460.0,0.00020821,2]
[379050546,1755101468181,-974.49,0.00020821,2]
[379050547,1755101468190,-460.0,0.00020821,2]
[379050548,1755101468200,-460.0,0.00020821,2]
[379050549,1755101468209,-1980.3,0.00020821,2]
[379050550,1755101468218,-460.0,0.00020821,2]
[379050551,1755101468227,-460.0,0.00020821,2]
[379050552,1755101468237,-471.4234807,0.00020821,2]
[379050553,1755101468246,-666.67,0.00020821,2]
[379050554,1755101468256,-460.0,0.00020821,2]
[379050555,1755101468265,-978.01,0.00020821,2]
[379050556,1755101468275,-4436.23,0.00020821,2]
[379050557,1755101468284,-460.0,0.00020821,2]
[379050558,1755101468294,-2457.62,0.00020821,2]
[379050559,1755101468304,-567.51,0.00020821,2]
[379050560,1755101468314,-460.0,0.00020821,2]
[379050561,1755101468323,-460.0,0.00020821,2]
[379050562,1755101468333,-460.0,0.00020821,2]
[379050563,1755101468342,-528.03,0.00020821,2]
[379050564,1755101468351,-460.0,0.00020821,2]
[379050565,1755101468360,-3502.61,0.00020821,2]
[379050566,1755101468370,-1673.97,0.00021,7]
[379050567,1755101468379,-350.0,0.00021068,2]
[379050568,1755101468389,-300.27046445,0.00021095,2]
[379050569,1755101468399,-460.0,0.00021095,2]
[379050570,1755101468408,-460.0,0.00021095,2]
[379050571,1755101468417,-460.0,0.00021095,2]
[379050572,1755101468427,-460.0,0.00021095,2]
[379050573,1755101468436,-460.0,0.00021095,2]
[379050574,1755101468445,-831.07,0.00021095,2]
[379050575,1755101468455,-514.76,0.00021095,2]
[379050576,1755101468464,-293.02,0.00021095,2]
[379050577,1755101468473,-460.0,0.00021095,2]
[379050578,1755101468483,-460.0,0.00021095,2]
[379050579,1755101468492,-460.0,0.00021095,2]
[379050580,1755101468502,-572.68,0.00021095,2]
[379050581,1755101468511,-281.21945263,0.00021095,2]
[379050582,1755101468520,-460.0,0.00021095,2]
[379050583,1755101468529,-656.93,0.00021095,2]
[379050584,1755101468540,-460.0,0.00021095,2]
[379050585,1755101468549,-467.85,0.00021095,2]
[379050586,1755101468559,-460.0,0.00021095,2]
[379050587,1755101468568,-592.21440744,0.00021095,2]
[379050588,1755101468577,-460.0,0.00021095,2]
[379050589,1755101468586,-460.0,0.00021095,2]
[379050590,1755101468595,-460.0,0.00021095,2]
[379050591,1755101468605,-460.0,0.00021095,2]
[379050592,1755101468614,-460.0,0.00021095,2]
[379050593,1755101468623,-522.0,0.00021095,2]
[379050594,1755101468632,-460.0,0.00021095,2]
[379050595,1755101468641,-421.49840866,0.00021095,2]
[379050596,1755101468651,-460.0,0.00021095,2]
[379050597,1755101468660,-460.0,0.00021095,2]
[379050598,1755101468669,-460.0,0.00021095,2]
[379050599,1755101468679,-460.0,0.00021095,2]
[379050600,1755101468688,-460.0,0.00021095,2]
[379050601,1755101468697,-460.0,0.00021095,2]
[379050602,1755101468707,-460.0,0.00021095,2]
[379050603,1755101468716,-460.0,0.00021095,2]
[379050604,1755101468725,-460.0,0.00021095,2]
[379050605,1755101468734,-1095.68,0.00021095,2]
[379050606,1755101468743,-460.0,0.00021095,2]
[379050607,1755101468753,-563.46,0.00021095,2]
[379050608,1755101468764,-590.17118076,0.00021095,2]
[379050609,1755101468774,-460.0,0.00021095,2]
[379050610,1755101468783,-460.0,0.00021095,2]
[379050611,1755101468793,-460.0,0.00021095,2]
[379050612,1755101468802,-460.0,0.00021095,2]
[379050613,1755101468813,-464.18472493,0.00021095,2]
[379050614,1755101468822,-460.0,0.00021095,2]
[379050615,1755101468832,-460.0,0.00021095,2]
[379050616,1755101468841,-460.0,0.00021095,2]
[379050617,1755101468852,-460.0,0.00021095,2]
[379050618,1755101468861,-171.11080472,0.00021095,2]
[379050619,1755101468871,-460.0,0.00021095,2]
[379050620,1755101468881,-460.0,0.00021095,2]
[379050621,1755101468890,-571.78,0.00021095,2]
[379050622,1755101468899,-460.0,0.00021095,2]
[379050623,1755101468909,-3084.82,0.00021095,2]
[379050624,1755101468919,-460.0,0.00021095,2]
[379050625,1755101468928,-460.0,0.00021095,2]
[379050626,1755101468938,-460.0,0.00021095,2]
[379050627,1755101468948,-556.29,0.00021095,2]
[379050628,1755101468958,-460.0,0.00021095,2]
[379050629,1755101468967,-460.0,0.00021095,2]
[379050630,1755101468977,-915.49,0.00021095,2]
[379050631,1755101468986,-927.18,0.00021095,2]
[379050632,1755101468995,-460.0,0.00021095,2]
[379050633,1755101469004,-460.0,0.00021095,2]
[379050634,1755101469014,-244.16395071,0.00021095,2]
[379050635,1755101469024,-460.0,0.00021095,2]
[379050636,1755101469033,-460.0,0.00021095,2]
[379050637,1755101469043,-460.0,0.00021095,2]